fUSD/lending_fUSD_20260526
["ID","MTS","AMOUNT","RATE_DAILY","PERIOD"]
[423050089,1779798978000,-500.0,0.00039167,120]
[423050090,1779798978000,-698.91,0.00039167,120]
[423050087,1779798978000,-698.91,0.00039167,120]
[423050088,1779798978000,-698.91,0.00039167,120]
[423050085,1779798978000,-698.91,0.00039167,120]
[423050086,1779798978000,-698.91,0.00039167,120]
[423050094,1779798978000,-698.91,0.00039167,120]
[423050112,1779798979000,-601.73,0.00039167,120]
[423050114,1779798979000,-601.73,0.00039167,120]
[423050118,1779798979000,-594.05004858,0.00039167,120]
[423050116,1779798979000,-649.92214816,0.00039167,120]
[423050117,1779798979000,-1615.38960574,0.00039167,120]
[423050113,1779798979000,-1615.38960574,0.00039167,120]
[423050115,1779798979000,-601.73,0.00039167,120]
[423050110,1779798979000,-624.03165619,0.00039167,120]
[423050106,1779798979000,-555.69009192,0.00039167,120]
[423050108,1779798979000,-500.0,0.00039167,120]
[423050109,1779798979000,-223.16622423,0.00039167,120]
[423050107,1779798979000,-562.01201184,0.00039167,120]
[423050104,1779798979000,-500.0,0.00039167,120]
[423050105,1779798979000,-208.71810515,0.00039167,120]
[423050103,1779798979000,-612.27787482,0.00039167,120]
[423050120,1779798979000,-1615.38960574,0.00039167,120]
[423050111,1779798979000,-601.73,0.00039167,120]
[423050119,1779798979000,-601.73,0.00039167,120]
[423050124,1779798979000,-1615.38960574,0.00039167,120]
[423050122,1779798979000,-1615.38960574,0.00039167,120]
[423050140,1779798979000,-601.73,0.00039167,120]
[423050139,1779798979000,-1615.38960574,0.00039167,120]
[423050121,1779798979000,-601.73,0.00039167,120]
[423050137,1779798979000,-1615.38960574,0.00039167,120]
[423050136,1779798979000,-601.73,0.00039167,120]
[423050135,1779798979000,-1615.38960574,0.00039167,120]
[423050134,1779798979000,-601.73,0.00039167,120]
[423050133,1779798979000,-1615.38960574,0.00039167,120]
[423050132,1779798979000,-601.73,0.00039167,120]
[423050138,1779798979000,-1615.38960574,0.00039167,120]
[423050129,1779798979000,-601.73,0.00039167,120]
[423050130,1779798979000,-601.73,0.00039167,120]
[423050127,1779798979000,-601.73,0.00039167,120]
[423050128,1779798979000,-1615.38960574,0.00039167,120]
[423050126,1779798979000,-1615.38960574,0.00039167,120]
[423050125,1779798979000,-601.73,0.00039167,120]
[423050123,1779798979000,-1615.38960574,0.00039167,120]
[423050131,1779798979000,-1615.38960574,0.00039167,120]
[423050154,1779798980000,-1615.38960574,0.00039167,120]
[423050153,1779798980000,-601.73,0.00039167,120]
[423050152,1779798980000,-500.0,0.00039167,120]
[423050150,1779798980000,-1615.38960574,0.00039167,120]
[423050151,1779798980000,-601.73,0.00039167,120]
[423050149,1779798980000,-601.73,0.00039167,120]
[423050144,1779798980000,-601.73,0.00039167,120]
[423050146,1779798980000,-601.73,0.00039167,120]
[423050145,1779798980000,-1615.38960574,0.00039167,120]
[423050142,1779798980000,-601.73,0.00039167,120]
[423050141,1779798980000,-1615.38960574,0.00039167,120]
[423050155,1779798980000,-586.00436133,0.00039167,120]
[423050147,1779798980000,-1615.38960574,0.00039167,120]
[423050156,1779798980000,-221.7984152,0.00039167,120]
[423050143,1779798980000,-1615.38960574,0.00039167,120]
[423050158,1779798980000,-601.73,0.00039167,120]
[423050171,1779798980000,-1615.38960574,0.00039167,120]
[423050172,1779798980000,-348.56411491,0.00039167,120]
[423050170,1779798980000,-601.75661169,0.00039167,120]
[423050169,1779798980000,-1615.38960574,0.00039167,120]
[423050168,1779798980000,-348.56411491,0.00039167,120]
[423050167,1779798980000,-601.73,0.00039167,120]
[423050166,1779798980000,-1615.38960574,0.00039167,120]
[423050157,1779798980000,-348.56411491,0.00039167,120]
[423050164,1779798980000,-601.73,0.00039167,120]
[423050163,1779798980000,-1615.38960574,0.00039167,120]
[423050162,1779798980000,-348.56411491,0.00039167,120]
[423050161,1779798980000,-1615.38960574,0.00039167,120]
[423050159,1779798980000,-1615.38960574,0.00039167,120]
[423050160,1779798980000,-348.56411491,0.00039167,120]
[423050165,1779798980000,-348.56411491,0.00039167,120]
[423050187,1779798981000,-1615.38960574,0.00039167,120]
[423050186,1779798981000,-1615.38960574,0.00039167,120]
[423050185,1779798981000,-212.36070988,0.00039167,120]
[423050183,1779798981000,-939.01,0.00039167,120]
[423050184,1779798981000,-1615.38960574,0.00039167,120]
[423050181,1779798981000,-348.56411491,0.00039167,120]
[423050182,1779798981000,-1615.38960574,0.00039167,120]
[423050178,1779798981000,-939.01,0.00039167,120]
[423050179,1779798981000,-1615.38960574,0.00039167,120]
[423050177,1779798981000,-348.56411491,0.00039167,120]
[423050176,1779798981000,-500.0,0.00039167,120]
[423050175,1779798981000,-524.24326005,0.00039167,120]
[423050173,1779798981000,-1615.38960574,0.00039167,120]
[423050188,1779798981000,-939.01,0.00039167,120]
[423050180,1779798981000,-939.01,0.00039167,120]
[423050190,1779798981000,-1615.38960574,0.00039167,120]
[423050189,1779798981000,-939.01,0.00039167,120]
[423050192,1779798981000,-1615.38960574,0.00039167,120]
[423050206,1779798981000,-939.01,0.00039167,120]
[423050205,1779798981000,-939.01,0.00039167,120]
[423050203,1779798981000,-939.01,0.00039167,120]
[423050204,1779798981000,-1615.38960574,0.00039167,120]
[423050202,1779798981000,-1615.38960574,0.00039167,120]
[423050201,1779798981000,-939.01,0.00039167,120]
[423050200,1779798981000,-1615.38960574,0.00039167,120]
[423050207,1779798981000,-1615.38960574,0.00039167,120]
[423050198,1779798981000,-221.33471693,0.00039167,120]
[423050197,1779798981000,-1615.38960574,0.00039167,120]
[423050196,1779798981000,-939.01,0.00039167,120]
[423050195,1779798981000,-500.0,0.00039167,120]
[423050193,1779798981000,-939.01,0.00039167,120]
[423050194,1779798981000,-1615.38960574,0.00039167,120]
[423050191,1779798981000,-939.01,0.00039167,120]
[423050199,1779798981000,-939.01,0.00039167,120]
[423050220,1779798982000,-1615.38960574,0.00039167,120]
[423050221,1779798982000,-500.0,0.00039167,120]
[423050218,1779798982000,-1615.38960574,0.00039167,120]
[423050219,1779798982000,-939.01,0.00039167,120]
[423050216,1779798982000,-616.14469618,0.00039167,120]
[423050217,1779798982000,-1615.38960574,0.00039167,120]
[423050215,1779798982000,-939.01,0.00039167,120]
[423050211,1779798982000,-1615.38960574,0.00039167,120]
[423050213,1779798982000,-939.01,0.00039167,120]
[423050212,1779798982000,-608.90047539,0.00039167,120]
[423050210,1779798982000,-939.01,0.00039167,120]
[423050208,1779798982000,-939.01,0.00039167,120]
[423050209,1779798982000,-1615.38960574,0.00039167,120]
[423050222,1779798982000,-939.01,0.00039167,120]
[423050214,1779798982000,-1615.38960574,0.00039167,120]
[423050224,1779798982000,-250.72788679,0.00039167,120]
[423050241,1779798982000,-1336.96,0.00039167,120]
[423050225,1779798982000,-1615.38960574,0.00039167,120]
[423050223,1779798982000,-1615.38960574,0.00039167,120]
[423050240,1779798982000,-1336.96,0.00039167,120]
[423050239,1779798982000,-1336.96,0.00039167,120]
[423050238,1779798982000,-939.13,0.00039167,120]
[423050237,1779798982000,-1336.96,0.00039167,120]
[423050234,1779798982000,-1336.96,0.00039167,120]
[423050235,1779798982000,-939.01,0.00039167,120]
[423050236,1779798982000,-1336.96,0.00039167,120]
[423050232,1779798982000,-939.01,0.00039167,120]
[423050230,1779798982000,-1615.38960574,0.00039167,120]
[423050231,1779798982000,-1336.96,0.00039167,120]
[423050229,1779798982000,-939.01,0.00039167,120]
[423050227,1779798982000,-1615.38960574,0.00039167,120]
[423050228,1779798982000,-939.01,0.00039167,120]
[423050226,1779798982000,-161.50835691,0.00039167,120]
[423050233,1779798982000,-632.27890691,0.00039167,120]
[423050250,1779798983000,-588.74034155,0.00039167,120]
[423050254,1779798983000,-1336.96,0.00039167,120]
[423050255,1779798983000,-194.402192,0.00039167,120]
[423050253,1779798983000,-500.0,0.00039167,120]
[423050252,1779798983000,-1336.96,0.00039167,120]
[423050251,1779798983000,-1336.96,0.00039167,120]
[423050249,1779798983000,-1336.96,0.00039167,120]
[423050256,1779798983000,-152.98858384,0.00039167,120]
[423050247,1779798983000,-1336.96,0.00039167,120]
[423050246,1779798983000,-1336.96,0.00039167,120]
[423050244,1779798983000,-1336.96,0.00039167,120]
[423050245,1779798983000,-1336.96,0.00039167,120]
[423050242,1779798983000,-1336.96,0.00039167,120]
[423050243,1779798983000,-1336.96,0.00039167,120]
[423050248,1779798983000,-1336.96,0.00039167,120]
[423050257,1779798983000,-523.799988,0.00039167,120]
[423050258,1779798983000,-194.402192,0.00039167,120]
[423050259,1779798983000,-1336.96,0.00039167,120]
[423050273,1779798983000,-500.0,0.00039167,120]
[423050272,1779798983000,-500.0,0.00039167,120]
[423050271,1779798983000,-500.0,0.00039167,120]
[423050270,1779798983000,-1336.98088835,0.00039167,120]
[423050268,1779798983000,-1336.96,0.00039167,120]
[423050269,1779798983000,-1336.96,0.00039167,120]
[423050266,1779798983000,-220.28440511,0.00039167,120]
[423050274,1779798983000,-152.34061791,0.00039167,120]
[423050265,1779798983000,-1336.96,0.00039167,120]
[423050264,1779798983000,-194.402192,0.00039167,120]
[423050263,1779798983000,-243.00703494,0.00039167,120]
[423050261,1779798983000,-1336.96,0.00039167,120]
[423050262,1779798983000,-500.0,0.00039167,120]
[423050260,1779798983000,-500.0,0.00039167,120]
[423050267,1779798983000,-546.278447,0.00039167,120]
[423050288,1779798984000,-500.0,0.00039167,120]
[423050286,1779798984000,-500.0,0.00039167,120]
[423050287,1779798984000,-500.0,0.00039167,120]
[423050284,1779798984000,-500.0,0.00039167,120]
[423050285,1779798984000,-175.91952742,0.00039167,120]
[423050283,1779798984000,-500.0,0.00039167,120]
[423050282,1779798984000,-500.0,0.00039167,120]
[423050279,1779798984000,-500.0,0.00039167,120]
[423050280,1779798984000,-500.0,0.00039167,120]
[423050278,1779798984000,-500.0,0.00039167,120]
[423050277,1779798984000,-500.0,0.00039167,120]
[423050276,1779798984000,-500.0,0.00039167,120]
[423050275,1779798984000,-500.0,0.00039167,120]
[423050289,1779798984000,-285.63563123,0.00039167,120]
[423050281,1779798984000,-500.0,0.00039167,120]
[423050292,1779798984000,-500.0,0.00039167,120]
[423050290,1779798984000,-500.0,0.00039167,120]
[423050308,1779798984000,-725.26,0.00039167,120]
[423050291,1779798984000,-500.0,0.00039167,120]
[423050307,1779798984000,-725.26,0.00039167,120]
[423050305,1779798984000,-725.26,0.00039167,120]
[423050306,1779798984000,-175.77771872,0.00039167,120]
[423050304,1779798984000,-202.30347949,0.00039167,120]
[423050301,1779798984000,-500.0,0.00039167,120]
[423050302,1779798984000,-725.26,0.00039167,120]
[423050303,1779798984000,-725.26,0.00039167,120]
[423050299,1779798984000,-500.0,0.00039167,120]
[423050298,1779798984000,-254.72641238,0.00039167,120]
[423050296,1779798984000,-228.61161963,0.00039167,120]
[423050297,1779798984000,-629.66677405,0.00039167,120]
[423050295,1779798984000,-500.0,0.00039167,120]
[423050294,1779798984000,-528.81693487,0.00039167,120]
[423050293,1779798984000,-500.0,0.00039167,120]
[423050300,1779798984000,-500.0,0.00039167,120]
[423050318,1779798985000,-500.0,0.00039167,120]
[423050323,1779798985000,-725.26,0.00039167,120]
[423050321,1779798985000,-151.0350619,0.00039167,120]
[423050322,1779798985000,-725.26,0.00039167,120]
[423050319,1779798985000,-183.57766737,0.00039167,120]
[423050320,1779798985000,-725.26,0.00039167,120]
[423050316,1779798985000,-725.26,0.00039167,120]
[423050324,1779798985000,-725.26,0.00039167,120]
[423050314,1779798985000,-725.26,0.00039167,120]
[423050315,1779798985000,-725.26,0.00039167,120]
[423050312,1779798985000,-725.26,0.00039167,120]
[423050313,1779798985000,-725.26,0.00039167,120]
[423050311,1779798985000,-725.26,0.00039167,120]
[423050309,1779798985000,-725.26,0.00039167,120]
[423050310,1779798985000,-171.7681599,0.00039167,120]
[423050317,1779798985000,-725.26,0.00039167,120]
[423050325,1779798985000,-725.26,0.00039167,120]
[423050342,1779798985000,-631.61632306,0.00039167,120]
[423050326,1779798985000,-725.26,0.00039167,120]
[423050327,1779798985000,-725.26,0.00039167,120]
[423050339,1779798985000,-504.20202646,0.00039167,120]
[423050341,1779798985000,-241.81206621,0.00039167,120]
[423050340,1779798985000,-151.32769633,0.00039167,120]
[423050338,1779798985000,-540.08181901,0.00039167,120]
[423050337,1779798985000,-500.0,0.00039167,120]
[423050336,1779798985000,-500.0,0.00039167,120]
[423050343,1779798985000,-500.0,0.00039167,120]
[423050334,1779798985000,-2549.73,0.00039167,120]
[423050333,1779798985000,-180.57329537,0.00039167,120]
[423050332,1779798985000,-725.41683433,0.00039167,120]
[423050330,1779798985000,-725.26,0.00039167,120]
[423050331,1779798985000,-225.24687484,0.00039167,120]
[423050329,1779798985000,-725.26,0.00039167,120]
[423050328,1779798985000,-725.26,0.00039167,120]
[423050335,1779798985000,-500.0,0.00039167,120]
[423050358,1779798986000,-500.0,0.00039167,120]
[423050357,1779798986000,-500.0,0.00039167,120]
[423050356,1779798986000,-500.0,0.00039167,120]
[423050355,1779798986000,-500.0,0.00039167,120]
[423050354,1779798986000,-500.0,0.00039167,120]
[423050352,1779798986000,-1437.92,0.00039167,120]
[423050353,1779798986000,-198.85371443,0.00039167,120]
[423050348,1779798986000,-500.0,0.00039167,120]
[423050351,1779798986000,-1503.86,0.00039167,120]
[423050349,1779798986000,-248.59912421,0.00039167,120]
[423050347,1779798986000,-500.0,0.00039167,120]
[423050346,1779798986000,-500.0,0.00039167,120]
[423050345,1779798986000,-500.0,0.00039167,120]
[423050344,1779798986000,-500.0,0.00039167,120]
[423050359,1779798986000,-360.94445244,0.00039167,120]
[423050350,1779798986000,-170.16782471,0.00039167,120]
[423050360,1779798986000,-184.38075547,0.00039167,120]
[423050379,1779798986000,-500.0,0.00039167,120]
[423050362,1779798986000,-188.84271691,0.00039167,120]
[423050361,1779798986000,-500.0,0.00039167,120]
[423050378,1779798986000,-500.0,0.00039167,120]
[423050377,1779798986000,-500.0,0.00039167,120]
[423050376,1779798986000,-500.0,0.00039167,120]
[423050375,1779798986000,-179.26718427,0.00039167,120]
[423050374,1779798986000,-165.55688152,0.00039167,120]
[423050372,1779798986000,-500.0,0.00039167,120]
[423050371,1779798986000,-500.0,0.00039167,120]
[423050373,1779798986000,-500.0,0.00039167,120]
[423050369,1779798986000,-500.0,0.00039167,120]
[423050368,1779798986000,-176.96228218,0.00039167,120]
[423050367,1779798986000,-1116.61,0.00039167,120]
[423050366,1779798986000,-285.76167195,0.00039167,120]
[423050365,1779798986000,-156.14160089,0.00039167,120]
[423050364,1779798986000,-500.0,0.00039167,120]
[423050363,1779798986000,-170.46182072,0.00039167,120]
[423050370,1779798986000,-361.62047482,0.00039167,120]
[423050389,1779798987000,-182.81371851,0.00039167,120]
[423050394,1779798987000,-161.44657417,0.00039167,120]
[423050395,1779798987000,-500.0,0.00039167,120]
[423050393,1779798987000,-151.63285334,0.00039167,120]
[423050392,1779798987000,-500.0,0.00039167,120]
[423050391,1779798987000,-354.28799235,0.00039167,120]
[423050390,1779798987000,-500.0,0.00039167,120]
[423050380,1779798987000,-500.0,0.00039167,120]
[423050387,1779798987000,-500.0,0.00039167,120]
[423050386,1779798987000,-1780.11,0.00039167,120]
[423050384,1779798987000,-500.0,0.00039167,120]
[423050385,1779798987000,-500.0,0.00039167,120]
[423050382,1779798987000,-500.0,0.00039167,120]
[423050383,1779798987000,-592.80843668,0.00039167,120]
[423050381,1779798987000,-500.0,0.00039167,120]
[423050388,1779798987000,-500.0,0.00039167,120]
[423050397,1779798987000,-255.2938312,0.00039167,120]
[423050398,1779798987000,-500.0,0.00039167,120]
[423050399,1779798987000,-199.93282655,0.00039167,120]
[423050415,1779798987000,-793.8,0.00039167,120]
[423050396,1779798987000,-500.0,0.00039167,120]
[423050413,1779798987000,-500.0,0.00039167,120]
[423050412,1779798987000,-793.8,0.00039167,120]
[423050411,1779798987000,-255.2938312,0.00039167,120]
[423050410,1779798987000,-793.8,0.00039167,120]
[423050409,1779798987000,-255.2938312,0.00039167,120]
[423050407,1779798987000,-255.2938312,0.00039167,120]
[423050414,1779798987000,-255.2938312,0.00039167,120]
[423050406,1779798987000,-793.8,0.00039167,120]
[423050405,1779798987000,-640.26999459,0.00039167,120]
[423050404,1779798987000,-255.2938312,0.00039167,120]
[423050403,1779798987000,-500.0,0.00039167,120]
[423050402,1779798987000,-255.2938312,0.00039167,120]
[423050400,1779798987000,-255.2938312,0.00039167,120]
[423050401,1779798987000,-500.0,0.00039167,120]
[423050408,1779798987000,-793.8,0.00039167,120]
[423050428,1779798988000,-793.8,0.00039167,120]
[423050427,1779798988000,-255.2938312,0.00039167,120]
[423050426,1779798988000,-255.2938312,0.00039167,120]
[423050425,1779798988000,-793.8,0.00039167,120]
[423050424,1779798988000,-255.2938312,0.00039167,120]
[423050423,1779798988000,-187.63670073,0.00039167,120]
[423050419,1779798988000,-215.78876753,0.00039167,120]
[423050422,1779798988000,-793.8,0.00039167,120]
[423050420,1779798988000,-255.2938312,0.00039167,120]
[423050418,1779798988000,-793.8,0.00039167,120]
[423050417,1779798988000,-255.2938312,0.00039167,120]
[423050416,1779798988000,-500.0,0.00039167,120]
[423050421,1779798988000,-255.2938312,0.00039167,120]
[423050429,1779798988000,-793.8,0.00039167,120]
[423050432,1779798988000,-793.8,0.00039167,120]
[423050431,1779798988000,-793.8,0.00039167,120]
[423050430,1779798988000,-850.94,0.00039167,120]
[423050444,1779798988000,-793.8,0.00039167,120]
[423050442,1779798988000,-793.8,0.00039167,120]
[423050441,1779798988000,-793.8,0.00039167,120]
[423050439,1779798988000,-793.8,0.00039167,120]
[423050440,1779798988000,-793.8,0.00039167,120]
[423050443,1779798988000,-793.8,0.00039167,120]
[423050438,1779798988000,-793.8,0.00039167,120]
[423050436,1779798988000,-212.21830906,0.00039167,120]
[423050435,1779798988000,-793.8,0.00039167,120]
[423050434,1779798988000,-500.0,0.00039167,120]
[423050433,1779798988000,-163.57872368,0.00039167,120]
[423050437,1779798988000,-793.8,0.00039167,120]
[423050452,1779798989000,-161.29778606,0.00039167,120]
[423050458,1779798989000,-500.0,0.00039167,120]
[423050457,1779798989000,-366.08375608,0.00039167,120]
[423050456,1779798989000,-166.73858026,0.00039167,120]
[423050455,1779798989000,-258.68137889,0.00039167,120]
[423050454,1779798989000,-166.32802719,0.00039167,120]
[423050453,1779798989000,-500.0,0.00039167,120]
[423050446,1779798989000,-793.8,0.00039167,120]
[423050450,1779798989000,-2282.81,0.00039167,120]
[423050449,1779798989000,-191.45140057,0.00039167,120]
[423050448,1779798989000,-500.0,0.00039167,120]
[423050447,1779798989000,-793.94603796,0.00039167,120]
[423050445,1779798989000,-793.8,0.00039167,120]
[423050460,1779798989000,-500.0,0.00039167,120]
[423050451,1779798989000,-317.42799504,0.00039167,120]
[423050459,1779798989000,-500.0,0.00039167,120]
[423050478,1779798989000,-500.0,0.00039167,120]
[423050462,1779798989000,-556.62462919,0.00039167,120]
[423050477,1779798989000,-758.6243642,0.00039167,120]
[423050476,1779798989000,-758.6243642,0.00039167,120]
[423050475,1779798989000,-211.45187328,0.00039167,120]
[423050474,1779798989000,-500.0,0.00039167,120]
[423050473,1779798989000,-500.0,0.00039167,120]
[423050472,1779798989000,-500.0,0.00039167,120]
[423050471,1779798989000,-178.61951134,0.00039167,120]
[423050461,1779798989000,-500.0,0.00039167,120]
[423050469,1779798989000,-563.16433118,0.00039167,120]
[423050468,1779798989000,-158.3092473,0.00039167,120]
[423050467,1779798989000,-179.792627,0.00039167,120]
[423050466,1779798989000,-312.10389757,0.00039167,120]
[423050465,1779798989000,-248.54278972,0.00039167,120]
[423050464,1779798989000,-500.0,0.00039167,120]
[423050463,1779798989000,-510.02767444,0.00039167,120]
[423050470,1779798989000,-500.0,0.00039167,120]
[423050491,1779798990000,-758.62436419,0.00039167,120]
[423050490,1779798990000,-758.62436419,0.00039167,120]
[423050489,1779798990000,-758.62436419,0.00039167,120]
[423050487,1779798990000,-758.62436419,0.00039167,120]
[423050488,1779798990000,-197.0276027,0.00039167,120]
[423050486,1779798990000,-500.0,0.00039167,120]
[423050482,1779798990000,-204.54769806,0.00039167,120]
[423050484,1779798990000,-758.62436419,0.00039167,120]
[423050483,1779798990000,-758.62436419,0.00039167,120]
[423050481,1779798990000,-758.6243642,0.00039167,120]
[423050480,1779798990000,-758.6243642,0.00039167,120]
[423050479,1779798990000,-284.66276305,0.00039167,120]
[423050492,1779798990000,-758.62436419,0.00039167,120]
[423050485,1779798990000,-758.62436419,0.00039167,120]
[423050493,1779798990000,-758.62436419,0.00039167,120]
[423050494,1779798990000,-758.62436419,0.00039167,120]
[423050495,1779798990000,-583.47448465,0.00039167,120]
[423050508,1779798990000,-648.54322705,0.00039167,120]
[423050509,1779798990000,-979.12,0.00039167,120]
[423050507,1779798990000,-979.12,0.00039167,120]
[423050506,1779798990000,-500.0,0.00039167,120]
[423050505,1779798990000,-979.12,0.00039167,120]
[423050504,1779798990000,-370.49322215,0.00039167,120]
[423050502,1779798990000,-185.70741603,0.00039167,120]
[423050510,1779798990000,-979.12,0.00039167,120]
[423050501,1779798990000,-361.62370356,0.00039167,120]
[423050500,1779798990000,-162.31947077,0.00039167,120]
[423050499,1779798990000,-253.74230445,0.00039167,120]
[423050497,1779798990000,-220.1095092,0.00039167,120]
[423050498,1779798990000,-644.57056149,0.00039167,120]
[423050496,1779798990000,-333.82836445,0.00039167,120]
[423050503,1779798990000,-341.73385716,0.00039167,120]
[423050523,1779798991000,-979.12,0.00039167,120]
[423050524,1779798991000,-979.12,0.00039167,120]
[423050521,1779798991000,-979.12,0.00039167,120]
[423050522,1779798991000,-979.12,0.00039167,120]
[423050520,1779798991000,-979.12,0.00039167,120]
[423050518,1779798991000,-261.80634335,0.00039167,120]
[423050519,1779798991000,-979.12,0.00039167,120]
[423050515,1779798991000,-500.0,0.00039167,120]
[423050516,1779798991000,-979.12,0.00039167,120]
[423050514,1779798991000,-588.28206174,0.00039167,120]
[423050513,1779798991000,-979.12,0.00039167,120]
[423050512,1779798991000,-979.12,0.00039167,120]
[423050511,1779798991000,-389.6059104,0.00039167,120]
[423050525,1779798991000,-979.12,0.00039167,120]
[423050517,1779798991000,-979.12,0.00039167,120]
[423050526,1779798991000,-152.61475415,0.00039167,120]
[423050543,1779798991000,-500.0,0.00039167,120]
[423050528,1779798991000,-611.22028387,0.00039167,120]
[423050527,1779798991000,-979.12,0.00039167,120]
[423050542,1779798991000,-979.34850187,0.00039167,120]
[423050540,1779798991000,-153.72772394,0.00039167,120]
[423050541,1779798991000,-527.45800634,0.00039167,120]
[423050537,1779798991000,-500.0,0.00039167,120]
[423050538,1779798991000,-979.12,0.00039167,120]
[423050535,1779798991000,-500.0,0.00039167,120]
[423050539,1779798991000,-644.55594782,0.00039167,120]
[423050532,1779798991000,-979.12,0.00039167,120]
[423050534,1779798991000,-979.12,0.00039167,120]
[423050533,1779798991000,-979.12,0.00039167,120]
[423050530,1779798991000,-214.23942066,0.00039167,120]
[423050531,1779798991000,-979.12,0.00039167,120]
[423050529,1779798991000,-979.12,0.00039167,120]
[423050536,1779798991000,-979.12,0.00039167,120]
[423050552,1779798992000,-1516.95,0.00039167,120]
[423050557,1779798992000,-500.0,0.00039167,120]
[423050555,1779798992000,-162.44651055,0.00039167,120]
[423050556,1779798992000,-500.0,0.00039167,120]
[423050554,1779798992000,-173.96262596,0.00039167,120]
[423050553,1779798992000,-1516.95,0.00039167,120]
[423050550,1779798992000,-1516.96,0.00039167,120]
[423050558,1779798992000,-238.7704607,0.00039167,120]
[423050549,1779798992000,-255.29383114,0.00039167,120]
[423050548,1779798992000,-165.19285592,0.00039167,30]
[423050547,1779798992000,-154.84870418,0.00039167,120]
[423050545,1779798992000,-500.0,0.00039167,120]
[423050546,1779798992000,-219.99654195,0.00039167,120]
[423050544,1779798992000,-191.88437099,0.00039167,120]
[423050551,1779798992000,-1516.95,0.00039167,120]
[423050559,1779798992000,-251.58048501,0.00039167,120]
[423050577,1779798992000,-500.0,0.00039167,120]
[423050560,1779798992000,-500.0,0.00039167,120]
[423050574,1779798992000,-500.0,0.00039167,120]
[423050575,1779798992000,-225.99307386,0.00039167,120]
[423050572,1779798992000,-500.0,0.00039167,120]
[423050573,1779798992000,-500.0,0.00039167,120]
[423050570,1779798992000,-500.0,0.00039167,120]
[423050571,1779798992000,-279.98888808,0.00039167,120]
[423050569,1779798992000,-273.72850001,0.00039167,120]
[423050576,1779798992000,-500.0,0.00039167,120]
[423050567,1779798992000,-218.60247669,0.00039167,120]
[423050568,1779798992000,-500.0,0.00039167,120]
[423050562,1779798992000,-500.0,0.00039167,120]
[423050563,1779798992000,-500.0,0.00039167,120]
[423050561,1779798992000,-500.0,0.00039167,120]
[423050566,1779798992000,-500.0,0.00039167,120]
[423050565,1779798992000,-500.0,0.00039167,120]
[423050564,1779798992000,-500.0,0.00039167,120]
[423050591,1779798993000,-220.2246924,0.00039167,120]
[423050589,1779798993000,-199.90751089,0.00039167,120]
[423050590,1779798993000,-500.0,0.00039167,120]
[423050587,1779798993000,-500.0,0.00039167,120]
[423050588,1779798993000,-170.80263555,0.00039167,120]
[423050586,1779798993000,-235.83682021,0.00039167,120]
[423050585,1779798993000,-500.0,0.00039167,120]
[423050583,1779798993000,-170.88303183,0.00039167,120]
[423050581,1779798993000,-500.0,0.00039167,120]
[423050579,1779798993000,-500.0,0.00039167,120]
[423050580,1779798993000,-150.2945706,0.00039167,120]
[423050578,1779798993000,-500.0,0.00039167,120]
[423050592,1779798993000,-168.15462676,0.00039167,120]
[423050584,1779798993000,-500.0,0.00039167,120]
[423050582,1779798993000,-500.0,0.00039167,120]
[423050593,1779798993000,-500.0,0.00039167,120]
[423050595,1779798993000,-177.17982219,0.00039167,120]
[423050594,1779798993000,-500.0,0.00039167,120]
[423050609,1779798993000,-1076.79,0.00039167,120]
[423050608,1779798993000,-1076.79,0.00039167,120]